bitfinex/quotes_SOLUSD_20250508
["timestamp","ask_amount","ask_price","bid_price","bid_amount"]
[1746666062816,32.78283204,149.7,149.65,32.78283204]
[1746666063016,0.9252811,149.74,149.68,32.78283204]
[1746666063240,32.78283204,149.73,149.63,44.64964886]
[1746666063447,12.8994586,149.76,149.7,32.78283204]
[1746666063615,32.78283204,149.74,149.67,50.0]
[1746666063820,32.78283204,149.73,149.68,32.78283204]
[1746666064133,12.8994586,149.76,149.69,32.78283204]
[1746666064328,12.8994586,149.76,149.7,6.68002672]
[1746666064643,12.8994586,149.76,149.7,39.46285876]
[1746666064824,32.78283204,149.74,149.7,6.68002672]
[1746666065024,32.78283204,149.74,149.69,50.0]
[1746666065025,12.8994586,149.76,149.66,50.0]
[1746666065220,19.57683574,149.76,149.66,56.6818121]
[1746666065531,32.78283204,149.71,149.66,56.6818121]
[1746666065741,19.57683574,149.76,149.66,56.6818121]
[1746666065935,32.78283204,149.68,149.65,6.68216686]
[1746666066136,32.78283204,149.69,149.65,6.68216686]
[1746666066333,32.78283204,149.73,149.65,6.68216686]
[1746666066519,32.78283204,149.7,149.65,39.4649989]
[1746666067129,32.78283204,149.73,149.65,6.68216686]
[1746666067345,32.78283204,149.7,149.65,39.4649989]
[1746666067542,6.67779632,149.75,149.67,6.68136567]
[1746666067749,32.78283204,149.73,149.67,6.68136567]
[1746666068050,32.78283204,149.7,149.66,50.0]
[1746666068225,6.67779632,149.75,149.66,82.78283204]
[1746666068436,6.67779632,149.75,149.68,50.0]
[1746666068847,32.78283204,149.72,149.68,50.0]
[1746666069049,6.67779632,149.75,149.68,50.0]
[1746666069243,32.78283204,149.71,149.68,50.0]
[1746666069545,32.78283204,149.69,149.64,6.68270515]
[1746666069752,58.78283204,149.73,149.61,50.0]
[1746666069933,32.78283204,149.62,149.61,50.0]
[1746666070132,6.5751,149.72,149.61,50.0]
[1746666070133,6.5751,149.72,149.61,56.68385819]
[1746666070347,32.78283204,149.63,149.6,6.68437709]
[1746666070647,32.78283204,149.71,149.63,50.0]
[1746666070875,32.78283204,149.68,149.63,50.0]
[1746666071024,32.78283204,149.7,149.65,32.78283204]
[1746666071224,6.6786648,149.74,149.65,50.0]
[1746666071437,12.8994586,149.76,149.69,50.0]
[1746666071641,12.8994586,149.76,149.7,32.78283204]
[1746666071842,32.78283204,149.74,149.69,82.78283204]
[1746666072039,12.8994586,149.76,149.69,50.0]
[1746666072240,12.8994586,149.76,149.71,50.0]
[1746666072759,12.8994586,149.76,149.74,32.78283204]
[1746666073259,12.8994586,149.76,149.75,50.0]
[1746666073640,12.8994586,149.76,149.75,82.78283204]
[1746666073951,12.8994586,149.76,149.75,89.46062836]
[1746666074154,12.8994586,149.76,149.75,134.25243879]
[1746666075358,12.8994586,149.76,149.75,108.25243879]
[1746666075863,0.5,149.79,149.78,94.64964886]
[1746666076048,6.67206656,149.88,149.83,50.0]
[1746666076243,39.4548986,149.88,149.83,50.0]
[1746666076445,6.67022411,149.92,149.85,50.0]
[1746666076647,1.12,150.0,149.91,32.78283204]
[1746666076849,1.12,150.0,149.9,32.78283204]
[1746666077156,1.12,150.0,149.87,50.0]
[1746666077364,32.78283204,149.94,149.87,50.0]
[1746666077554,10.0,149.99,149.85,27.22]
[1746666077756,10.0,149.99,149.88,32.78283204]
[1746666077962,32.78283204,149.92,149.87,32.78283204]
[1746666078141,32.78283204,149.94,149.84,50.0]
[1746666078660,32.78283204,149.89,149.82,50.0]
[1746666078864,32.78283204,149.94,149.83,32.78283204]
[1746666079043,32.78283204,149.89,149.84,32.78283204]
[1746666079241,32.78283204,149.86,149.81,6.67498513]
[1746666079446,16.67572897,149.92,149.84,32.78283204]
[1746666079644,32.78283204,149.94,149.83,50.0]
[1746666079847,6.66800026,149.97,149.89,32.78283204]
[1746666080164,6.66800026,149.97,149.9,32.78283204]
[1746666080341,32.78283204,149.95,149.87,50.0]
[1746666080681,32.78283204,149.89,149.83,50.0]
[1746666080851,32.78283204,149.88,149.83,82.78283204]
[1746666081170,32.78283204,149.91,149.86,32.78283204]
[1746666081343,33.33800092,149.97,149.83,50.0]
[1746666081544,32.78283204,149.9,149.84,6.67378537]
[1746666081760,32.78283204,149.88,149.83,89.45685163]
[1746666082195,32.78283204,149.9,149.85,32.78283204]
[1746666082683,32.78283204,149.89,149.83,56.67401959]
[1746666082981,32.78283204,149.84,149.79,32.78283204]
[1746666083271,23.35057906,149.89,149.81,32.78283204]
[1746666083460,32.78283204,149.87,149.82,32.78283204]
[1746666083651,32.78283204,149.87,149.79,50.0]
[1746666083854,32.78283204,149.85,149.78,6.67636564]
[1746666084064,32.78283204,149.85,149.8,32.78283204]
[1746666084252,32.78283204,149.84,149.8,32.78283204]
[1746666084774,23.35057906,149.89,149.81,32.78283204]
[1746666084943,32.78283204,149.85,149.81,32.78283204]
[1746666085144,32.78283204,149.85,149.8,32.78283204]
[1746666085372,32.78283204,149.84,149.77,50.0]
[1746666085577,6.67168121,149.89,149.82,32.78283204]
[1746666085909,32.78283204,149.94,149.88,32.78283204]
[1746666086073,32.78283204,149.96,149.91,32.78283204]
[1746666086243,32.78283204,149.95,149.87,50.0]
[1746666086444,32.78283204,149.91,149.83,50.0]
[1746666086668,32.78283204,149.94,149.89,32.78283204]
[1746666086882,6.66857946,149.96,149.88,6.67200427]
[1746666087079,1.6663,149.97,149.92,32.78283204]
[1746666087250,7.78701369,150.0,149.9,50.0]
[1746666087573,33.90283204,150.0,149.96,32.78283204]
[1746666087753,32.78283204,149.99,149.92,50.0]
[1746666087958,32.78283204,149.99,149.95,32.78283204]
[1746666088162,32.78283204,149.99,149.92,50.0]
[1746666088359,32.78283204,149.98,149.93,32.78283204]
[1746666088558,32.78283204,149.97,149.9,50.0]
[1746666088872,7.78678356,150.0,149.93,39.45257574]
[1746666089059,32.78283204,149.96,149.86,76.5]
[1746666089266,32.78283204,149.95,149.9,32.78283204]
[1746666089461,32.78283204,149.97,149.88,50.0]
[1746666089674,7.78678356,150.0,149.93,32.78283204]
[1746666089980,7.78678356,150.0,149.9,50.0]
[1746666090484,32.78283204,149.98,149.93,32.78283204]
[1746666090649,32.78283204,149.96,149.92,32.78283204]
[1746666090855,32.78283204,149.95,149.89,6.67155914]
[1746666091062,6.66755567,149.98,149.87,6.67244945]
[1746666091262,32.78283204,149.95,149.88,50.0]
[1746666091567,32.78283204,149.91,149.87,6.67244945]
[1746666091768,32.78283204,149.92,149.88,32.78283204]
[1746666091965,32.78283204,149.9,149.87,6.67244945]
[1746666092169,32.78283204,149.92,149.87,39.45528149]
[1746666092373,23.33644485,149.98,149.89,32.78283204]
[1746666092567,23.33644485,149.98,149.88,32.78283204]
[1746666092775,32.78283204,149.93,149.89,6.67155914]
[1746666093078,32.78283204,149.95,149.9,32.78283204]
[1746666093454,32.78283204,149.92,149.89,6.67155914]
[1746666093656,6.66843141,149.97,149.89,39.45439118]
[1746666093874,6.66749299,149.99,149.89,56.67155914]
[1746666094049,32.78283204,149.98,149.93,32.78283204]
[1746666094259,32.78283204,149.98,149.89,56.67155914]
[1746666094471,32.78283204,149.97,149.91,32.78283204]
[1746666094652,32.78283204,149.97,149.89,56.67155914]
[1746666094853,32.78283204,149.98,149.92,32.78283204]
[1746666095179,39.45025176,149.99,149.93,32.78283204]
[1746666095376,1.12,150.0,149.96,32.78283204]
[1746666095555,1.12,150.0,149.91,73.34715215]
[1746666095756,1.12,150.0,149.97,32.78283204]
[1746666096781,1.12,150.0,149.97,39.45072958]
[1746666097087,1.12,150.0,149.97,6.66789754]
[1746666097577,1.12,150.0,149.97,39.45072958]
[1746666097778,33.90283204,150.0,149.94,6.6693344]
[1746666097967,32.78283204,149.98,149.92,6.67022411]
[1746666098275,32.78283204,149.97,149.92,39.45305615]
[1746666098477,32.78283204,149.97,149.93,32.78283204]
[1746666098676,7.78686879,150.0,149.86,50.0]
[1746666098677,32.78283204,149.95,149.86,50.0]
[1746666098976,32.78283204,149.9,149.85,6.67334]
[1746666099178,32.78283204,149.89,149.85,6.67334]
[1746666099369,0.14216157,149.96,149.83,39.45706283]
[1746666099683,32.78283204,149.94,149.84,32.78283204]
[1746666099974,32.78283204,149.87,149.82,6.67451218]
[1746666100165,32.78283204,149.83,149.78,6.6764588]
[1746666100361,32.78283204,149.79,149.72,50.0]
[1746666100562,32.78283204,149.8,149.7,6.68002672]
[1746666100778,32.78283204,149.74,149.7,32.78283204]
[1746666100988,1.5169,149.82,149.7,50.0]
[1746666101178,1.5169,149.82,149.69,56.88480715]
[1746666101179,34.29973204,149.82,149.77,32.78283204]
[1746666101485,32.78283204,149.78,149.7,50.0]
[1746666101779,6.6197,149.86,149.77,50.0]
[1746666101981,6.6197,149.86,149.82,32.78283204]
[1746666102281,32.78283204,149.86,149.81,32.78283204]
[1746666102480,1.5169,149.89,149.84,32.78283204]
[1746666102677,25.68,149.91,149.86,32.78283204]
[1746666102856,32.78283204,149.88,149.83,32.78283204]
[1746666103056,32.78283204,149.88,149.81,23.36292637]
[1746666103262,32.78283204,149.88,149.84,32.78283204]
[1746666103784,32.35092454,149.91,149.81,6.67512182]
[1746666103985,32.78283204,149.86,149.81,6.67512182]
[1746666104182,32.78283204,149.86,149.81,16.68780455]
[1746666104571,32.78283204,149.86,149.82,32.78283204]
[1746666104773,32.78283204,149.88,149.81,16.68780455]
[1746666104965,32.78283204,149.86,149.81,16.68780455]
[1746666105166,32.78283204,149.85,149.8,6.67556742]
[1746666105360,32.78283204,149.85,149.81,32.78283204]
[1746666105569,32.35069767,149.91,149.82,32.78283204]
[1746666105767,32.78283204,149.84,149.8,6.67556742]
[1746666105986,32.78283204,149.81,149.72,50.0]
[1746666106183,6.6728947,149.86,149.77,39.45973662]
[1746666106379,32.78283204,149.81,149.77,6.67690458]
[1746666106569,32.78283204,149.79,149.77,6.67690458]
[1746666106977,32.78283204,149.79,149.73,6.6786883]
[1746666107162,42.00478031,149.86,149.73,6.6786883]
[1746666107163,32.78283204,149.76,149.73,6.6786883]
[1746666107569,6.2921,149.81,149.69,6.68047297]
[1746666107766,32.78283204,149.74,149.7,32.78283204]
[1746666107973,32.78283204,149.8,149.71,32.78283204]
[1746666108176,32.78283204,149.74,149.69,23.38165541]
[1746666108404,6.67704136,149.77,149.69,23.38165541]
[1746666108679,32.78283204,149.75,149.7,32.78283204]
[1746666109080,32.78283204,149.75,149.69,23.38165541]
[1746666109279,32.78283204,149.75,149.7,32.78283204]
[1746666109590,6.67704136,149.77,149.71,6.67958052]
[1746666110087,32.78283204,149.75,149.71,39.46241256]
[1746666110288,32.78283204,149.75,149.64,33.25741298]
[1746666110583,32.78283204,149.73,149.65,6.6822586]
[1746666110892,25.68,149.75,149.7,32.78283204]
[1746666111092,58.46283204,149.75,149.7,32.78283204]
[1746666111288,25.68,149.75,149.71,32.78283204]
[1746666111496,32.78283204,149.78,149.69,23.38165541]
[1746666111796,32.78283204,149.75,149.68,6.6807729]
[1746666111997,32.78283204,149.71,149.65,6.6822586]
[1746666112217,26.0,149.79,149.7,32.78283204]
[1746666112502,26.0,149.79,149.66,82.78283204]
[1746666112503,32.78283204,149.76,149.71,32.78283204]
[1746666112880,32.78283204,149.74,149.66,82.78283204]
[1746666113081,32.78283204,149.72,149.67,32.78283204]
[1746666113294,32.61599297,149.72,149.68,32.78283204]
[1746666113498,6.67838136,149.74,149.68,6.68071177]
[1746666113675,16.69174472,149.78,149.68,39.46354381]
[1746666113877,32.78283204,149.72,149.68,39.46354381]
[1746666114099,32.78283204,149.72,149.68,6.68071177]
[1746666114290,6.67690458,149.77,149.71,32.78283204]
[1746666114602,32.78283204,149.74,149.69,32.78283204]
[1746666115302,32.78283204,149.71,149.66,6.6818121]
[1746666115600,32.78283204,149.7,149.65,6.6822586]
[1746666115805,32.78283204,149.69,149.65,6.6822586]
[1746666116108,32.78283204,149.67,149.63,33.63154166]
[1746666116319,56.15835957,149.73,149.62,6.68359844]
[1746666116481,32.78283204,149.65,149.61,6.68366629]
[1746666116682,32.78283204,149.62,149.57,66.18472032]
[1746666117088,32.78283204,149.62,149.58,32.78283204]
[1746666117299,32.78283204,149.61,149.57,33.40188828]
[1746666117595,2.81283204,149.6,149.54,50.0]
[1746666117806,32.78283204,149.59,149.54,50.0]
[1746666117983,39.4646926,149.66,149.57,32.78283204]
[1746666118183,32.78283204,149.62,149.55,23.40354395]
[1746666118393,32.78283204,149.61,149.55,23.40354395]
[1746666118703,39.4646926,149.66,149.55,23.40354395]
[1746666118704,56.16922286,149.66,149.55,6.68672684]
[1746666118907,56.16922286,149.66,149.55,39.46955888]
[1746666119099,32.78283204,149.6,149.56,32.78283204]
[1746666119298,32.78283204,149.63,149.55,73.40354395]
[1746666119606,32.78283204,149.63,149.58,6.68538574]
[1746666120109,6.4009,149.7,149.62,32.78283204]
[1746666120285,6.5836,149.75,149.66,32.78283204]
[1746666120485,32.78283204,149.71,149.62,50.0]
[1746666120697,32.78283204,149.68,149.61,26.0]
[1746666120925,32.78283204,149.66,149.62,32.78283204]
[1746666121201,32.78283204,149.66,149.6,50.0]
[1746666121202,32.78283204,149.69,149.64,32.78283204]
[1746666121385,32.78283204,149.67,149.6,50.0]
[1746666121586,32.78283204,149.67,149.61,6.68404518]
[1746666121782,32.78283204,149.66,149.61,39.46687722]
[1746666121986,1.5219,149.72,149.65,32.78283204]
[1746666122284,1.5219,149.72,149.62,50.0]
[1746666122285,13.26150727,149.75,149.66,32.78283204]
[1746666122590,32.78283204,149.74,149.66,50.0]
[1746666122786,32.78283204,149.7,149.64,50.0]
[1746666122984,32.78283204,149.68,149.62,26.0]
[1746666123297,32.78283204,149.73,149.64,32.78283204]
[1746666123484,23.36916604,149.77,149.62,76.0]
[1746666123677,32.78283204,149.68,149.63,6.68315177]
[1746666123900,32.78283204,149.67,149.6,26.0]
[1746666124209,32.78283204,149.67,149.61,50.0]
[1746666124709,32.78283204,149.66,149.6,6.68449197]
[1746666124897,32.78283204,149.65,149.6,39.46732401]
[1746666125212,32.78283204,149.66,149.6,56.68449197]
[1746666125393,32.78283204,149.64,149.59,6.68478809]
[1746666125605,32.78283204,149.61,149.54,50.0]
[1746666125907,32.78283204,149.6,149.56,32.78283204]
[1746666126108,32.78283204,149.61,149.57,32.78283204]
[1746666126410,1.5952,149.67,149.6,32.78283204]
[1746666126596,12.7349722,149.69,149.59,32.78283204]
[1746666126803,32.78283204,149.64,149.56,50.0]
[1746666126987,32.78283204,149.62,149.55,26.0]
[1746666127195,32.78283204,149.66,149.54,6.6870186]
[1746666127196,32.78283204,149.61,149.54,6.6870186]
[1746666127393,6.0541,149.69,149.6,32.78283204]
[1746666127701,32.78283204,149.69,149.64,39.46525569]
[1746666127999,32.78283204,149.67,149.59,76.0]
[1746666128223,32.78283204,149.66,149.61,32.78283204]
[1746666128511,32.78283204,149.68,149.63,32.78283204]
[1746666128710,32.78283204,149.65,149.6,6.68449197]
[1746666128919,32.78283204,149.65,149.6,39.46732401]
[1746666129211,23.37863299,149.71,149.57,23.39956846]
[1746666129524,23.37863299,149.71,149.61,32.78283204]
[1746666129525,32.78283204,149.65,149.61,32.78283204]
[1746666129711,32.78283204,149.66,149.62,6.68359844]
[1746666129895,32.78283204,149.66,149.62,39.46643048]
[1746666130097,32.78283204,149.66,149.62,6.68359844]
[1746666130294,6.68019807,149.7,149.64,32.78283204]
[1746666130486,30.0,149.65,149.63,32.78283204]
[1746666130695,30.0,149.65,149.62,39.46643048]
[1746666130995,30.0,149.65,149.63,32.78283204]
[1746666131629,30.0,149.65,149.64,84.35747451]
[1746666131799,30.0,149.65,149.64,117.04017966]
[1746666132109,30.0,149.65,149.64,65.60769876]
[1746666133315,1.5279,149.78,149.65,0.14216157]
[1746666133614,1.5279,149.78,149.76,32.78283204]
[1746666133831,169.58283204,149.82,149.77,32.78283204]
[1746666133996,7.762,149.83,149.79,32.78283204]
[1746666134194,1.5746,149.83,149.8,32.78283204]
[1746666134421,1.5746,149.83,149.81,32.78283204]
[1746666134606,6.67300129,149.86,149.81,32.78283204]
[1746666134607,32.78283204,149.86,149.81,32.78283204]
[1746666134806,8.30753858,149.88,149.85,32.78283204]
[1746666134807,1.6354,149.88,149.85,32.78283204]
[1746666135020,1.6354,149.88,149.86,32.78283204]
[1746666135206,32.78283204,149.9,149.85,32.78283204]
[1746666135414,8.3047344,149.94,149.87,32.78283204]
[1746666135609,32.78283204,149.91,149.84,50.0]
[1746666135926,32.78283204,149.92,149.87,32.78283204]
[1746666136108,32.78283204,149.9,149.85,6.67334]
[1746666136311,32.78283204,149.92,149.87,32.78283204]
[1746666136499,8.3047344,149.94,149.89,32.78283204]
[1746666136500,1.6354,149.94,149.89,32.78283204]
[1746666136702,32.78283204,149.92,149.85,6.67334]
[1746666136906,32.78283204,149.91,149.86,32.78283204]
[1746666137120,32.78283204,149.92,149.87,32.78283204]
[1746666137319,8.30493785,149.94,149.87,32.78283204]
[1746666137501,32.78283204,149.92,149.87,32.78283204]
[1746666137702,32.78283204,149.92,149.85,6.67334]
[1746666137902,32.78283204,149.92,149.87,32.78283204]
[1746666138126,32.78283204,149.93,149.88,32.78283204]
[1746666138458,32.78283204,149.92,149.87,32.78283204]
[1746666138608,32.78283204,149.93,149.85,23.35669001]
[1746666138927,32.78283204,149.91,149.86,32.78283204]
[1746666139106,32.78283204,149.9,149.85,6.67334]
[1746666139425,32.78283204,149.89,149.84,6.67378069]
[1746666139601,32.78283204,149.87,149.82,6.67430226]
[1746666139803,8.30488686,149.94,149.82,50.0]
[1746666140002,32.78283204,149.89,149.84,32.78283204]
[1746666140313,32.78283204,149.88,149.83,32.78283204]
[1746666140620,32.78283204,149.87,149.82,32.78283204]
[1746666140799,57.7610549,149.94,149.82,32.78283204]
[1746666140996,57.7610549,149.94,149.81,6.67512182]
[1746666140997,32.78283204,149.86,149.81,6.67512182]
[1746666141200,26.0,149.93,149.82,32.78283204]
[1746666141401,0.3334,149.97,149.9,32.78283204]
[1746666141618,0.3334,149.97,149.87,50.0]
[1746666141821,32.78283204,149.93,149.89,6.67155914]
[1746666142337,32.78283204,149.92,149.89,6.67155914]
[1746666142512,0.3334,149.97,149.9,32.78283204]
[1746666142712,32.78283204,149.93,149.89,6.67155914]
[1746666142913,32.78283204,149.93,149.87,66.68060683]
[1746666142914,32.78283204,149.92,149.87,50.0]
[1746666143124,32.78283204,149.94,149.87,6.6720484]
[1746666143322,32.78283204,149.91,149.87,6.6720484]
[1746666143529,32.78283204,149.9,149.86,6.67277023]
[1746666143748,32.78283204,149.94,149.82,50.0]
[1746666144036,32.78283204,149.9,149.82,73.50352853]
[1746666144231,32.78283204,149.88,149.82,73.36136696]
[1746666144411,6.66977923,149.93,149.82,6.67467627]
[1746666144614,6.66977923,149.93,149.82,39.45750831]
[1746666144836,6.66977923,149.93,149.83,32.78283204]
[1746666145033,32.78283204,149.88,149.82,73.36136696]
[1746666145241,6.66977923,149.93,149.82,106.144199]
[1746666145540,32.78283204,149.87,149.82,39.45750831]
[1746666145721,32.78283204,149.89,149.84,32.78283204]
[1746666145926,32.78283204,149.89,149.85,6.67334]
[1746666146128,32.78283204,149.9,149.85,39.45617204]
[1746666146326,1.524,149.92,149.86,32.78283204]
[1746666146527,32.78283204,149.91,149.87,32.78283204]
[1746666146742,6.66844491,149.96,149.89,32.78283204]
[1746666147037,32.78283204,149.94,149.85,56.67334]
[1746666147230,32.78283204,149.94,149.89,32.78283204]
[1746666147410,6.66844491,149.96,149.85,56.67334]
[1746666147613,32.78283204,149.94,149.89,32.78283204]
[1746666147841,32.78283204,149.93,149.87,50.0]
[1746666148144,32.78283204,149.93,149.88,32.78283204]
[1746666148437,6.66844491,149.96,149.89,32.78283204]
[1746666148640,32.78283204,149.94,149.89,32.78283204]
[1746666148821,32.78283204,149.94,149.87,6.67235644]
[1746666148822,32.78283204,149.91,149.86,32.78283204]
[1746666149027,1.6007,149.94,149.83,50.0]
[1746666149221,32.78283204,149.91,149.86,32.78283204]
[1746666149836,1.6007,149.94,149.89,32.78283204]
[1746666150023,1.6007,149.94,149.9,32.78283204]
[1746666150523,32.78283204,149.92,149.85,76.0]
[1746666150846,32.78283204,149.93,149.88,32.78283204]
[1746666151744,32.78283204,149.92,149.85,50.0]
[1746666151914,39.4530612,149.92,149.87,32.78283204]
[1746666152240,8.27015914,149.94,149.86,6.6728947]
[1746666152439,32.78283204,149.92,149.88,32.78283204]
[1746666152623,8.27015914,149.94,149.86,6.6728947]
[1746666152823,32.78283204,149.92,149.87,32.78283204]
[1746666153023,32.78283204,149.92,149.88,32.78283204]
[1746666153227,32.78283204,149.93,149.88,32.78283204]
[1746666153440,32.78283204,149.93,149.89,32.78283204]
[1746666153756,32.78283204,149.96,149.91,32.78283204]
[1746666153934,32.78283204,149.96,149.91,39.45312893]
[1746666154131,0.3334,149.97,149.92,32.78283204]
[1746666154328,32.78283204,149.96,149.92,32.78283204]
[1746666154731,32.78283204,149.96,149.91,6.67029689]
[1746666154929,32.78283204,149.96,149.91,39.45312893]
[1746666155629,0.3334,149.97,149.93,32.78283204]
[1746666155829,32.78283204,149.96,149.9,6.67102834]
[1746666156144,32.78283204,149.96,149.91,32.78283204]
[1746666156343,32.78283204,149.93,149.87,74.18216157]
[1746666156538,32.78283204,149.94,149.9,32.78283204]
[1746666156745,6.66846452,149.96,149.91,32.78283204]
[1746666156937,6.66846452,149.96,149.9,32.78283204]
[1746666157242,0.3334,149.97,149.91,32.78283204]
[1746666157243,7.00155124,149.97,149.91,32.78283204]
[1746666157444,32.78283204,149.96,149.91,32.78283204]
[1746666157648,32.78283204,149.94,149.88,6.67191273]
[1746666157844,32.78283204,149.93,149.88,6.67191273]
[1746666158152,32.78283204,149.93,149.89,32.78283204]
[1746666158324,32.78283204,149.93,149.88,6.67191273]
[1746666158530,32.78283204,149.92,149.88,32.78283204]
[1746666158731,32.78283204,149.92,149.87,56.67232949]
[1746666159051,32.78283204,149.92,149.88,32.78283204]
[1746666159349,32.78283204,149.89,149.84,50.0]
[1746666159746,32.78283204,149.89,149.84,82.78283204]
[1746666160047,32.78283204,149.87,149.82,50.0]
[1746666160264,32.78283204,149.87,149.76,50.0]
[1746666160265,32.78283204,149.83,149.76,50.0]
[1746666160554,32.78283204,149.78,149.73,6.67853147]
[1746666160853,32.78283204,149.76,149.7,50.0]
[1746666161156,25.6026,149.86,149.73,108.78283204]
[1746666161449,25.6026,149.86,149.69,23.38165541]
[1746666161450,1.5626,149.86,149.77,50.0]
[1746666161658,32.78283204,149.82,149.78,32.78283204]
[1746666162032,32.78283204,149.83,149.78,32.78283204]
[1746666162359,1.5626,149.86,149.79,32.78283204]
[1746666162533,32.78283204,149.85,149.8,32.78283204]
[1746666162733,32.78283204,149.84,149.77,50.0]
[1746666162930,1.5626,149.86,149.83,32.78283204]
[1746666163143,1.5108,149.92,149.84,32.78283204]
[1746666163346,32.78283204,149.88,149.83,32.78283204]
[1746666163531,32.78283204,149.84,149.78,76.0]
[1746666163832,32.78283204,149.88,149.78,76.0]
[1746666164034,32.78283204,149.85,149.8,32.78283204]
[1746666164236,32.78283204,149.85,149.79,6.67601308]
[1746666164450,36.83600915,149.92,149.79,6.67601308]
[1746666164451,6.67066906,149.91,149.81,32.78283204]
[1746666164656,32.78283204,149.87,149.83,32.78283204]
[1746666164833,6.67066906,149.91,149.84,32.78283204]
[1746666165150,32.78283204,149.85,149.77,6.67690458]
[1746666165353,32.78283204,149.82,149.77,6.67690458]
[1746666165731,49.34734173,149.91,149.8,32.78283204]
[1746666165934,32.78283204,149.88,149.83,39.45670422]
[1746666166138,32.78283204,149.87,149.81,6.67512182]
[1746666166329,32.78283204,149.87,149.82,32.78283204]
[1746666166739,32.78283204,149.87,149.81,6.67512182]
[1746666167138,32.78283204,149.87,149.82,32.78283204]
[1746666167344,6.67183921,149.89,149.83,39.45706283]
[1746666167543,6.67183921,149.89,149.79,6.67601308]
[1746666168144,6.67183921,149.89,149.82,32.78283204]
[1746666168330,32.78283204,149.86,149.81,32.78283204]
[1746666168850,32.78283204,149.86,149.81,39.45782814]
[1746666169461,6.67258542,149.87,149.81,6.6749961]
[1746666169755,32.78283204,149.86,149.81,6.6749961]
[1746666169954,32.78283204,149.86,149.81,39.45782814]
[1746666170153,6.67258542,149.87,149.81,39.45782814]
[1746666170338,32.78283204,149.84,149.81,6.6749961]
[1746666170654,32.78283204,149.84,149.79,39.45884512]
[1746666170854,32.78283204,149.84,149.79,6.67601308]
[1746666171062,18.64964886,149.89,149.79,6.67601308]
[1746666171241,32.78283204,149.87,149.77,39.45973662]
[1746666171552,32.78283204,149.81,149.77,6.67690458]
[1746666171761,32.78283204,149.87,149.75,6.67779632]
[1746666171762,32.78283204,149.8,149.75,6.67779632]
[1746666172065,1.5743,149.83,149.74,63.50095655]
[1746666172235,6.67547074,149.81,149.74,30.71812451]
[1746666172438,6.67547074,149.81,149.75,32.78283204]
[1746666172643,32.78283204,149.79,149.74,63.50095655]
[1746666172973,32.78283204,149.79,149.74,39.46095655]
[1746666173171,32.78283204,149.78,149.74,6.67812451]
[1746666173372,6.67547074,149.81,149.74,39.46095655]
[1746666173537,32.78283204,149.78,149.74,39.46095655]
[1746666173743,6.67547074,149.81,149.72,6.67913438]
[1746666173744,32.78283204,149.77,149.72,6.67913438]
[1746666173950,32.78283204,149.76,149.72,39.46196642]
[1746666174259,32.78283204,149.74,149.67,6.68136567]
[1746666174434,32.78283204,149.74,149.67,82.68136567]
[1746666174631,6.67601308,149.79,149.7,32.78283204]
[1746666174943,44.36394886,149.83,149.73,32.78283204]
[1746666174944,32.78283204,149.78,149.73,32.78283204]
[1746666175137,32.78283204,149.79,149.74,32.78283204]
[1746666175343,8.24865573,149.83,149.76,32.78283204]
[1746666175552,32.78283204,149.79,149.72,26.0]
[1746666175755,32.78283204,149.79,149.74,32.78283204]
[1746666175981,32.78283204,149.77,149.69,50.0]
[1746666176157,32.78283204,149.76,149.71,32.78283204]
[1746666176356,32.78283204,149.76,149.72,6.67913438]
[1746666176747,32.78283204,149.76,149.72,39.46196642]
[1746666177064,32.78283204,149.76,149.72,6.67913438]
[1746666177736,32.78283204,149.75,149.7,6.68002672]
[1746666178154,32.78283204,149.74,149.7,39.46285876]
[1746666178362,32.78283204,149.75,149.71,32.78283204]
[1746666178664,32.78283204,149.79,149.74,32.78283204]
[1746666178836,32.78283204,149.77,149.7,23.38009352]
[1746666179037,32.78283204,149.74,149.7,6.68002672]
[1746666179238,32.78283204,149.73,149.7,6.68002672]
[1746666179659,56.81526217,149.81,149.7,6.68002672]
[1746666179837,32.78283204,149.74,149.7,6.68002672]
[1746666180037,66.82780455,149.81,149.7,6.68002672]
[1746666180235,32.78283204,149.8,149.7,6.68002672]
[1746666180438,32.78283204,149.73,149.7,6.68002672]
[1746666180864,56.14731801,149.8,149.7,6.68002672]
[1746666181071,32.78283204,149.74,149.7,6.68002672]
[1746666181670,32.78283204,149.73,149.7,6.68002672]
[1746666182041,6.67732664,149.77,149.71,32.78283204]
[1746666182255,32.78283204,149.75,149.7,39.46285876]
[1746666182636,32.78283204,149.8,149.72,32.78283204]
[1746666182841,32.78283204,149.77,149.72,32.78283204]
[1746666183078,32.78283204,149.76,149.72,32.78283204]
[1746666183542,1.5743,149.83,149.75,32.78283204]
[1746666183866,6.6015,149.88,149.82,32.78283204]